Workbook

Sheet Sheet1
A1: 室外台阶及地面石材铺贴工程量汇总表（㎡）
A2: 序号 | B2: 楼号 | C2: 计算式 | D2: 工程量 | E2: 备注
A3: 1 | B3: 教学楼一 | C3: 3.2*1.6 | D3: =3.2*1.6 -> 5.12
A4: 2 | C4: 0.14*(1.6+1.6+3.2+1.3+1.3+2.6+1+1+2) | D4: =0.14*(1.6+1.6+3.2+1.3+1.3+2.6+1+1+2) -> 2.18
A5: 3 | C5: 3.8*2.1 | D5: =3.8*2.1 -> 7.98
A6: 4 | C6: 0.14*(2.1+2.1+3.8+1.8+1.8+3.2+1.5+1.5+2.6) | D6: =0.14*(2.1+2.1+3.8+1.8+1.8+3.2+1.5+1.5+2.6) -> 2.86
A7: 5 | C7: 2.6*1.6 | D7: =2.6*1.6 -> 4.16
A8: 6 | C8: 0.14*(3.2+1.6+1.6+1.3+1.3+2.6+2+1+1) | D8: =0.14*(3.2+1.6+1.6+1.3+1.3+2.6+2+1+1) -> 2.18
A9: 7 | C9: 3.8*1 | D9: =3.8*1 -> 3.80 | E9: 未破损
A10: 8 | C10: 0.14*(3.8+1+1+3.2+0.7+0.7+2.6+0.4+0.4) | D10: =0.14*(3.8+1+1+3.2+0.7+0.7+2.6+0.4+0.4) -> 1.93
A11: 9 | C11: 3.2*1.6 | D11: =3.2*1.6 -> 5.12
A12: 10 | C12: 0.14*(3.2+1.6+1.6+2.6+1.3+1.3+2+1+1) | D12: =0.14*(3.2+1.6+1.6+2.6+1.3+1.3+2+1+1) -> 2.18
A13: 11 | C13: 5.4*2.7 | D13: =5.4*2.7 -> 14.58
A14: 12 | C14: 0.14*(5.4+5.4+4.8+4.2+2.4+2.2+1.9+2.8+0.5) | D14: =0.14*(5.4+5.4+4.8+4.2+2.4+2.2+1.9+2.8+0.5) -> 4.14
A15: 13 | C15: 5.5*2.4 | D15: =5.5*2.4 -> 13.20
A16: 14 | C16: 0.14*(8+7+6+1.5) | D16: =0.14*(8+7+6+1.5) -> 3.15
A17: 15 | C17: 5.5*2.4 | D17: =5.5*2.4 -> 13.20
A18: 16 | C18: 0.14*(8+7+6+1.5) | D18: =0.14*(8+7+6+1.5) -> 3.15
A19: 小计 | D19: =SUM(D3:D18) -> 88.94
A20: 17 | B20: 体育馆 | C20: 4.7*2.5+0.14*（4.4+4.7+4.7） | D20: =4.7*2.5+0.14*(4.4+4.7+4.7) -> 13.68
A21: 18 | C21: 6.3*1.2+0.14*（1.2+1.2+1.2） | D21: =6.3*1.2+0.14*(1.2+1.2+1.2) -> 8.06
A22: 19 | C22: 1.5*5.8 | D22: =1.5*5.8 -> 8.70
A23: 20 | C23: 0.1*（5.8+5.8+4.3+4.3+2.3+2.3） | D23: =0.1*(5.8+5.8+4.3+4.3+2.3+2.3) -> 2.48
A24: 21 | C24: 3.5*1 | D24: =3.5*1 -> 3.50
A25: 22 | C25: 5.3*2.4+0.14*（5.8+5.8） | D25: =5.3*2.4+0.14*(5.8+5.8) -> 14.34
A26: 小计 | D26: =SUM(D20:D25) -> 50.77
A27: 23 | B27: 英语楼 | C27: 2.2*1.6 | D27: =2.2*1.6 -> 3.52 | E27: 其他部位未破损
A28: 24 | C28: 0.14*(2.2+2.2+2.2) | D28: =0.14*(2.2+2.2+2.2) -> 0.92
A29: 小计 | D29: =SUM(D27:D28) -> 4.44
A30: 25 | B30: 中文楼 | C30: 3.6*1+0.14*（3.6+3.6） | D30: =3.6*1+0.14*(3.6+3.6) -> 4.61 | E30: 其他部位未破损
A31: 26 | C31: 5.4*3.6 | D31: =5.4*3.6 -> 19.44
A32: 27 | C32: 4.8*1.2 | D32: =4.8*1.2 -> 5.76
A33: 28 | C33: 0.1*（4.8+4+2.8+2+0.45） | D33: =0.1*(4.8+4+2.8+2+0.45) -> 1.41
A34: 小计 | D34: =SUM(D30:D33) -> 31.21
A35: 29 | B35: 食堂 | C35: 11.7*2.7+0.14*（11.7+11.7+11.7） | D35: =11.7*2.7+0.14*(11.7+11.7+11.7) -> 36.50
A36: 30 | C36: 7.3*2.7+0.14*（7.3+7.3+7.3） | D36: =7.3*2.7+0.14*(7.3+7.3+7.3) -> 22.78
A37: 31 | C37: 2*1.4+0.14*（2+2+2） | D37: =2*1.4+0.14*(2+2+2) -> 3.64
A38: 小计 | D38: =SUM(D35:D37) -> 62.92
A39: 32 | B39: 行政楼 | C39: 3.4*2.3 | D39: =3.4*2.3 -> 7.82
A40: 33 | C40: 0.14*（1.1+1.1+2.2+1.5+1.5+2.8+2+2+3.4+3.4） | D40: =0.14*(1.1+1.1+2.2+1.5+1.5+2.8+2+2+3.4+3.4) -> 2.94
A41: 34 | C41: 6.7*2.4 | D41: =6.7*2.4 -> 16.08
A42: 35 | C42: 0.14*（8+9.1+0.5+8） | D42: =0.14*(8+9.1+0.5+8) -> 3.58
A43: 36 | C43: 4*2+0.14*（6+5.4+4.8） | D43: =4*2+0.14*(6+5.4+4.8) -> 10.27
A44: 小计 | D44: =SUM(D39:D43) -> 40.69
A45: 37 | B45: 招生楼 | C45: 3.4*2 | D45: =3.4*2 -> 6.80
A46: 38 | C46: 0.14*（1.7+1.7+3.4+3.4+2.8+1.4+1.4+2.2+1.1+1.1） | D46: =0.14*(1.7+1.7+3.4+3.4+2.8+1.4+1.4+2.2+1.1+1.1) -> 2.83
A47: 39 | C47: 3.2*1.8 | D47: =3.2*1.8 -> 5.76
A48: 40 | C48: 0.14*（3.2+1.8+2.9+2.6+1.5+1.2） | D48: =0.14*(3.2+1.8+2.9+2.6+1.5+1.2) -> 1.85
A49: 41 | C49: 5.3*2.4 | D49: =5.3*2.4 -> 12.72
A50: 42 | C50: 0.14*（8+0.9+0.7+0.3+2.1+1.8+5.2+4.6） | D50: =0.14*(8+0.9+0.7+0.3+2.1+1.8+5.2+4.6) -> 3.30
A51: 小计 | D51: =SUM(D45:D50) -> 33.26
A52: 43 | B52: 场地 | C52: 5.2*4 | D52: =5.2*4 -> 20.80
A53: 总计 | B53: =D19+D26+D29+D34+D38+D44+D51+D52+2.96 -> 336.00

Sheet Sheet2
A1: 上海韩国学校外籍人员子女学校室外台阶石材铺贴、栏杆更换工程
A3: 项目名称 | B3: 序号 | C3: 细节 | D3: 备注
A4: 火烧面花岗岩更换 | B4: 1 | C4: 原石材拆除 | D4: 原始石材拆除，短驳至校方指定位置
B5: 2 | C5: 拆除垃圾外运 | D5: 使用环卫车将建筑垃圾外运出场
B6: 3 | C6: 细石砼基础找平 | D6: 使用自拌细石混凝土对基础找平
B7: 4 | C7: 踏步面石材铺贴 | D7: 海螺P.C 42.5水泥干铺，粗纱，火烧面花岗岩,厚度30mm
B8: 5 | C8: 侧石石材铺贴 | D8: 火烧面花岗岩,厚度20mm
B9: 6 | C9: 磨边及防滑 | D9: 切割及磨小圆边
A10: 无障碍通道扶手更换 | B10: 1 | C10: 原扶手拆除 | D10: 原不锈钢扶手拆除，包含基础预埋件及周围石材一起拆除
B11: 2 | C11: 扶手埋板制作安装 | D11: 制作100*100*2mm预埋钢板
B12: 3 | C12: 不锈钢扶手制作安装 | D12: SUS 304不锈钢、大管5.1cm、厚度2.0毫米 、圆管
B13: 4 | C13: 石材修复 | D13: 海螺P.C 42.5水泥干铺，火烧面花岗岩,厚度30mm
B14: 5 | C14: 扶手基础侧墙粉刷 | D14: 室外防水涂料
A15: 新建无障碍通道 | B15: 1 | C15: 基础挖土并夯实 | D15: 使用人工对素土地面开挖至老土，并堆放至校方指定位置
B16: 2 | C16: 渣土垃圾外运 | D16: 使用环卫车将建筑垃圾外运出场
B17: 3 | C17: 混凝土地坪浇筑 | D17: 商品混凝土C30浇筑基础
B18: 4 | C18: 石材铺贴 | D18: 海螺P.C 42.5水泥干铺，火烧面花岗岩,厚度30mm
B19: 5 | C19: 扶手基础制作 | D19: C30混凝土浇筑扶手基础
B20: 6 | C20: 不锈钢扶手制作安装 | D20: SUS 304不锈钢、大管5.1cm、厚度2.0毫米 、圆管
A21: 食堂楼梯踏步更换 | B21: 1 | C21: 石材拆除 | D21: 原始石材拆除，短驳至校方指定位置
B22: 2 | C22: 垃圾外运 | D22: 使用环卫车将建筑垃圾外运出场
B23: 3 | C23: 砂浆找平 | D23: 使用自拌砂浆对基础找平
B24: 4 | C24: 踏步石材铺贴 | D24: 海螺P.C 42.5水泥干铺，抛光大理石,厚度30mm，长度1750,通铺
A25: 教学楼至食堂地面修补 | B25: 1 | C25: 踏步石材铺贴 | D25: 海螺P.C 42.5水泥干铺，火烧面花岗岩,厚度30mm
A26: 教学楼一层走廊地面瓷砖修复 | B26: 1 | C26: 地面找平瓷砖修复 | D26: 瓷砖大小参考现有规格
A29: 学校各栋楼出入口位置示意图
A70: 台阶现状照片

Sheet Sheet3
